bitfinex-derivatives/quotes_ETHF0:USTF0_20260221
["timestamp","ask_amount","ask_price","bid_price","bid_amount"]
[1771660094699,6.29007254,1962.5,1961.7,0.69255609]
[1771660094893,0.00631091,1962.6,1961.7,0.69255609]
[1771660095093,6.29007254,1962.5,1961.7,0.69255609]
[1771660095393,0.00631091,1962.6,1961.7,0.69255609]
[1771660095694,6.28986724,1962.5,1961.7,0.69255609]
[1771660095991,0.00631091,1962.6,1961.7,0.69255609]
[1771660096293,6.28986775,1962.5,1961.7,0.69255609]
[1771660096494,0.00631091,1962.6,1961.7,0.69255609]
[1771660096690,6.28967616,1962.5,1961.7,0.69255609]
[1771660096893,0.00631091,1962.6,1961.7,0.69255609]
[1771660097093,6.28967633,1962.5,1961.7,0.69255609]
[1771660097294,0.00631091,1962.6,1961.7,0.69255609]
[1771660097494,6.28949751,1962.5,1961.7,0.69255609]
[1771660097698,0.00631091,1962.6,1961.7,0.69255609]
[1771660097897,6.28949854,1962.5,1961.7,0.69255609]
[1771660098196,0.00631091,1962.6,1961.7,0.69255609]
[1771660098496,6.28944155,1962.5,1961.7,0.69255609]
[1771660098696,0.00631091,1962.6,1961.7,0.69255609]
[1771660098887,6.28933359,1962.5,1961.7,0.69255609]
[1771660099089,0.00631091,1962.6,1961.7,0.69255609]
[1771660099298,6.28929003,1962.5,1961.7,0.69255609]
[1771660099499,0.00631091,1962.6,1961.7,0.69255609]
[1771660099799,6.28916775,1962.5,1961.7,0.69255609]
[1771660100098,0.00631091,1962.6,1961.7,0.69255609]
[1771660100398,6.28816752,1962.5,1961.7,0.69255609]
[1771660100599,0.00631091,1962.6,1961.7,0.69255609]
[1771660100798,6.2880444,1962.5,1961.7,0.69255609]
[1771660100999,0.00631091,1962.6,1961.7,0.69255609]
[1771660101200,6.28803113,1962.5,1961.7,0.69255609]
[1771660101500,0.00631091,1962.6,1961.7,0.69255609]
[1771660101700,6.28790683,1962.5,1961.7,0.69255609]
[1771660101896,0.00631091,1962.6,1961.7,0.69255609]
[1771660102096,6.28790752,1962.5,1961.7,0.69255609]
[1771660102396,0.00631091,1962.6,1961.7,0.69255609]
[1771660102595,6.28778591,1962.5,1961.7,0.69255609]
[1771660102796,0.00631091,1962.6,1961.7,0.69255609]
[1771660102996,6.28778587,1962.5,1961.7,0.69255609]
[1771660103200,0.00631091,1962.6,1961.7,0.69255609]
[1771660103401,6.28779804,1962.5,1961.7,0.69255609]
[1771660103599,0.00631091,1962.6,1961.7,0.69255609]
[1771660103793,6.28767655,1962.5,1961.7,0.69255609]
[1771660103991,0.00631091,1962.6,1961.7,0.69255609]
[1771660104195,6.28767674,1962.5,1961.7,0.69255609]
[1771660104393,0.00631091,1962.6,1961.7,0.69255609]
[1771660104600,6.28758132,1962.5,1961.7,0.69255609]
[1771660104799,0.00631091,1962.6,1961.7,0.69255609]
[1771660105000,6.2875826,1962.5,1961.7,0.69255609]
[1771660105200,0.00631091,1962.6,1961.7,0.69255609]
[1771660105399,6.28750388,1962.5,1961.7,0.94750609]
[1771660105598,0.00631091,1962.6,1961.8,0.69089302]
[1771660105799,6.28730739,1962.5,1961.8,0.69089302]
[1771660106101,0.00631091,1962.6,1961.8,0.69089302]
[1771660106302,6.28711554,1962.5,1961.8,0.69089302]
[1771660106501,0.00631091,1962.6,1961.8,0.69089302]
[1771660118211,0.00631091,1962.6,1961.9,0.68964246]
[1771660127522,4.27649875,1963.0,1962.1,0.69073055]
[1771660127722,0.4674598,1962.9,1962.1,0.69073055]
[1771660128018,6.28661464,1962.8,1962.1,0.69073055]
[1771660128213,4.27649875,1963.1,1962.1,0.69073055]
[1771660128412,6.28524528,1963.0,1962.1,0.69073055]
[1771660128718,6.28524528,1962.9,1962.1,0.69073055]
[1771660128920,0.46741805,1962.8,1962.1,0.69073055]
[1771660129122,4.28040233,1963.1,1962.1,0.69073055]
[1771660129319,6.28457433,1963.0,1962.1,0.69073055]
[1771660129619,6.28457433,1962.9,1962.1,0.69073055]
[1771660129818,0.46735284,1962.8,1962.1,0.69073055]
[1771660130022,5.94237877,1963.1,1962.3,0.69103691]
[1771660130321,6.26380024,1963.0,1962.3,0.69103691]
[1771660130521,6.26380024,1962.9,1962.3,0.69103691]
[1771660130721,5.94237877,1963.1,1962.3,0.69103691]
[1771660130918,6.26376854,1963.0,1962.3,0.69103691]
[1771660131121,6.26376854,1962.9,1962.3,0.69103691]
[1771660131318,5.94237877,1963.1,1962.3,0.69103691]
[1771660131519,6.26345026,1963.0,1962.3,0.69103691]
[1771660131817,6.26345026,1962.9,1962.3,0.69103691]
[1771660132017,5.94237877,1963.1,1962.3,0.69103691]
[1771660132217,6.26325159,1963.0,1962.3,0.69103691]
[1771660132517,6.26325159,1962.9,1962.3,0.69103691]
[1771660132713,5.94237877,1963.1,1962.3,0.69103691]
[1771660132913,6.26323796,1963.0,1962.3,0.69103691]
[1771660133117,6.26323796,1962.9,1962.3,0.69103691]
[1771660133314,5.94237877,1963.1,1962.3,0.69103691]
[1771660133520,6.26307891,1963.0,1962.3,0.69103691]
[1771660133815,0.46722876,1962.9,1962.3,0.69103691]
[1771660134020,1.66588002,1963.1,1962.3,0.69103691]
[1771660134220,6.2626968,1963.0,1962.3,0.69103691]
[1771660134424,0.46722869,1962.9,1962.3,0.69103691]
[1771660134621,1.66588002,1963.1,1962.3,0.69103691]
[1771660134920,6.26266975,1963.0,1962.3,0.69103691]
[1771660135121,0.46720164,1962.9,1962.3,0.69103691]
[1771660135323,1.66588002,1963.1,1962.3,0.69103691]
[1771660135521,6.26247354,1963.0,1962.3,0.69103691]
[1771660135724,0.46719,1962.9,1962.3,0.69103691]
[1771660136026,1.66588002,1963.1,1962.3,0.69103691]
[1771660136225,6.26214075,1963.0,1962.3,0.69103691]
[1771660136528,1.66588002,1963.1,1962.3,0.69103691]
[1771660136730,6.26211528,1963.0,1962.3,0.69103691]
[1771660137030,6.26211597,1962.9,1962.3,0.69103691]
[1771660137225,1.66588002,1963.1,1962.3,0.69103691]
[1771660137425,6.26212552,1963.0,1962.3,0.69103691]
[1771660137626,6.26212552,1962.9,1962.3,0.69103691]
[1771660137826,1.66588002,1963.1,1962.3,0.69103691]
[1771660138026,6.26211116,1963.0,1962.3,0.69103691]
[1771660138229,6.26211116,1962.9,1962.3,0.69103691]
[1771660138426,1.66588002,1963.1,1962.3,0.69103691]
[1771660138727,6.2619948,1963.0,1962.3,0.69103691]
[1771660139024,6.2619948,1962.9,1962.3,0.69103691]
[1771660139220,1.66588002,1963.1,1962.3,0.69103691]
[1771660139424,6.26197728,1963.0,1962.3,0.69103691]
[1771660139629,6.26197728,1962.9,1962.3,0.69103691]
[1771660139831,1.66588002,1963.1,1962.3,0.69103691]
[1771660140033,6.26197946,1963.0,1962.3,0.69103691]
[1771660140333,6.26197946,1962.9,1962.3,0.69103691]
[1771660140522,1.66588002,1963.1,1962.3,0.69103691]
[1771660140727,6.26220202,1963.0,1962.3,0.69103691]
[1771660141028,6.26220202,1962.9,1962.3,0.69103691]
[1771660141225,1.66588002,1963.1,1962.3,0.69103691]
[1771660141430,6.26233973,1963.0,1962.3,0.69103691]
[1771660141630,0.4671805,1962.9,1962.3,0.69103691]
[1771660141831,1.66588002,1963.1,1962.3,0.69103691]
[1771660142130,6.2621601,1963.0,1962.3,0.69103691]
[1771660142328,0.46717985,1962.9,1962.3,0.69103691]
[1771660142531,1.66588002,1963.1,1962.3,0.69103691]
[1771660142733,6.26231089,1963.0,1962.3,0.69103691]
[1771660142939,0.46716549,1962.9,1962.3,0.69103691]
[1771660143131,1.66588002,1963.1,1962.3,0.69103691]
[1771660143332,6.26230908,1963.0,1962.3,0.69103691]
[1771660143633,1.66588002,1963.1,1962.3,0.69103691]
[1771660143831,6.26218528,1963.0,1962.3,0.69103691]
[1771660144032,1.66588002,1963.1,1962.3,0.69103691]
[1771660144230,6.26220924,1963.0,1962.3,0.69103691]
[1771660144433,1.66588002,1963.1,1962.3,0.69103691]
[1771660144633,6.26213198,1963.0,1962.3,0.69103691]
[1771660144832,1.66588002,1963.1,1962.3,0.69103691]
[1771660145033,6.2621313,1963.0,1962.3,0.69103691]
[1771660145237,1.66588002,1963.1,1962.3,0.69103691]
[1771660145429,6.26214293,1963.0,1962.3,0.69103691]
[1771660145629,1.66588002,1963.1,1962.3,0.69103691]
[1771660145929,6.26214874,1963.0,1962.3,0.69103691]
[1771660146123,1.66588002,1963.1,1962.3,0.69103691]
[1771660146323,6.26224447,1963.0,1962.3,0.69103691]
[1771660146525,0.46715478,1962.9,1962.3,0.69103691]
[1771660146728,1.66588002,1963.1,1962.3,0.69103691]
[1771660146937,6.26224155,1963.0,1962.3,0.69103691]
[1771660147132,6.26224155,1962.9,1962.3,0.69103691]
[1771660147333,1.66588002,1963.1,1962.3,0.69103691]
[1771660147532,6.26269189,1963.0,1962.3,0.69103691]
[1771660147838,6.26269189,1962.9,1962.3,0.69103691]
[1771660148037,1.66588002,1963.1,1962.3,0.69103691]
[1771660148234,6.26287858,1963.0,1962.3,0.69103691]
[1771660148537,6.26287858,1962.9,1962.3,0.69103691]
[1771660148839,1.66588002,1963.1,1962.3,0.69103691]
[1771660149037,6.26299035,1963.0,1962.3,0.69103691]
[1771660149338,6.26299035,1962.9,1962.3,0.69103691]
[1771660149636,1.66588002,1963.1,1962.3,0.69103691]
[1771660149835,6.26330909,1963.0,1962.3,0.69103691]
[1771660150038,6.26330909,1962.9,1962.3,0.69103691]
[1771660150333,1.66588002,1963.1,1962.3,0.69103691]
[1771660150538,6.26370265,1963.0,1962.3,0.69103691]
[1771660150738,6.26370265,1962.9,1962.3,0.69103691]
[1771660151035,1.66588002,1963.1,1962.3,0.69103691]
[1771660151230,6.26403165,1963.0,1962.3,0.69103691]
[1771660151432,6.26406733,1962.9,1962.3,0.69103691]
[1771660151634,1.66588002,1963.1,1962.3,0.69103691]
[1771660151834,6.26417882,1963.0,1962.3,0.69103691]
[1771660152135,6.26417882,1962.9,1962.3,0.69103691]
[1771660152336,1.66588002,1963.1,1962.3,0.69103691]
[1771660152535,6.2647471,1963.0,1962.3,0.69103691]
[1771660152736,6.2647471,1962.9,1962.3,0.69103691]
[1771660152936,1.66588002,1963.1,1962.3,0.69103691]
[1771660153135,6.2647478,1963.0,1962.3,0.69103691]
[1771660153334,6.2647478,1962.9,1962.3,0.69103691]
[1771660153534,1.66588002,1963.1,1962.3,0.69103691]
[1771660153734,6.26543371,1963.0,1962.3,0.69103691]
[1771660154029,6.26543371,1962.9,1962.3,0.69103691]
[1771660154232,1.66588002,1963.1,1962.3,0.69103691]
[1771660154438,6.26620735,1963.0,1962.3,0.69103691]
[1771660154636,6.26620735,1962.9,1962.3,0.69103691]
[1771660154836,1.66588002,1963.1,1962.3,0.69103691]
[1771660155035,6.2662639,1963.0,1962.3,0.69103691]
[1771660155235,6.2662639,1962.9,1962.3,0.69103691]
[1771660155537,5.94036315,1963.1,1962.3,0.69103691]
[1771660155737,6.2673046,1963.0,1962.3,0.69103691]
[1771660155935,6.2673046,1962.9,1962.3,0.69103691]
[1771660156134,5.94036315,1963.1,1962.3,0.69103691]
[1771660156334,6.26849991,1963.0,1962.3,0.69103691]
[1771660156535,6.26849991,1962.9,1962.3,0.69103691]
[1771660156834,5.94036315,1963.1,1962.3,0.69103691]
[1771660157030,6.26868266,1963.0,1962.3,0.69103691]
[1771660157230,5.94036315,1963.1,1962.3,0.69103691]
[1771660157231,6.26868266,1962.9,1962.3,0.69103691]
[1771660157540,5.94036315,1963.1,1962.3,0.69103691]
[1771660157541,0.46780889,1962.8,1962.3,0.69103691]
[1771660157734,5.94036315,1963.1,1962.3,0.69103691]
[1771660157934,6.27084673,1963.0,1962.3,0.69103691]
[1771660158134,6.27084673,1962.9,1962.3,0.69103691]
[1771660158334,0.46780881,1962.8,1962.3,0.69103691]
[1771660158539,5.94036315,1963.1,1962.3,0.69103691]
[1771660158739,6.27103316,1963.0,1962.3,0.69103691]
[1771660158935,6.27103316,1962.9,1962.3,0.69103691]
[1771660159136,0.46782165,1962.8,1962.3,0.69103691]
[1771660159337,5.94036315,1963.1,1962.3,0.69103691]
[1771660159536,6.27125233,1963.0,1962.3,0.69103691]
[1771660159738,6.27125233,1962.9,1962.3,0.69103691]
[1771660159939,0.46783857,1962.8,1962.3,0.69103691]
[1771660160138,5.94036315,1963.1,1962.3,0.69103691]
[1771660160339,6.27109014,1963.0,1962.3,0.69103691]
[1771660160537,6.27109014,1962.9,1962.3,0.69103691]
[1771660160739,0.4678384,1962.8,1962.3,0.69103691]
[1771660160939,5.94036315,1963.1,1962.3,0.69103691]
[1771660161140,6.27114446,1963.0,1962.3,0.69103691]
[1771660161336,6.27114446,1962.9,1962.3,0.69103691]
[1771660161537,0.46785852,1962.8,1962.3,0.69103691]
[1771660161736,5.94036315,1963.1,1962.3,0.69103691]
[1771660162032,6.27146005,1963.0,1962.3,0.69103691]
[1771660162236,6.27146005,1962.9,1962.3,0.69103691]
[1771660162437,6.27146005,1962.8,1962.3,0.69103691]
[1771660162637,5.94036315,1963.1,1962.3,0.69103691]
[1771660162838,6.27174143,1963.0,1962.3,0.69103691]
[1771660163137,6.27174143,1962.9,1962.3,0.69103691]
[1771660163337,6.27174143,1962.8,1962.3,0.69103691]
[1771660163637,5.94036315,1963.1,1962.3,0.69103691]
[1771660163840,6.27210856,1963.0,1962.3,0.69103691]
[1771660164137,6.27210856,1962.9,1962.3,0.69103691]
[1771660164337,6.27210856,1962.8,1962.3,0.69103691]
[1771660164637,5.94036315,1963.1,1962.3,0.69103691]
[1771660164838,6.27215587,1963.0,1962.3,0.69103691]
[1771660165040,6.27215587,1962.9,1962.3,0.69103691]
[1771660165240,6.27215587,1962.8,1962.3,0.69103691]
[1771660165441,5.94036315,1963.1,1962.3,0.69103691]
[1771660165642,6.27221405,1963.0,1962.3,0.69103691]
[1771660165840,6.27221405,1962.9,1962.3,0.69103691]
[1771660166040,6.27221405,1962.8,1962.3,0.69103691]
[1771660166340,5.94036315,1963.1,1962.3,0.69103691]
[1771660166540,6.27228722,1963.0,1962.3,0.69103691]
[1771660166739,6.27228722,1962.9,1962.3,0.69103691]
[1771660166943,6.27228722,1962.8,1962.3,0.69103691]
[1771660167143,5.94036315,1963.1,1962.3,0.69103691]
[1771660167344,6.27227113,1963.0,1962.3,0.69103691]
[1771660167543,6.27227113,1962.9,1962.3,0.69103691]
[1771660167744,6.27227113,1962.8,1962.3,0.69103691]
[1771660168042,5.94036315,1963.1,1962.3,0.69103691]
[1771660168242,6.27226206,1963.0,1962.3,0.69103691]
[1771660168438,6.27226206,1962.9,1962.3,0.69103691]
[1771660168744,6.27226206,1962.8,1962.2,0.68422631]
[1771660168947,1.66197644,1962.9,1962.1,8.70796795]
[1771660169244,6.27228664,1962.8,1962.1,0.68422631]
[1771660169441,0.46793779,1962.7,1962.1,0.68422631]
[1771660169637,1.66197644,1962.9,1962.1,0.68422631]
[1771660169841,6.27130221,1962.8,1962.1,0.68422631]
[1771660170037,0.4678647,1962.7,1962.1,0.68422631]
[1771660170245,1.66197644,1962.9,1962.1,0.68422631]
[1771660170445,6.27070465,1962.8,1962.1,0.68422631]
[1771660170745,0.46782014,1962.7,1962.1,0.68422631]
[1771660170944,1.66197644,1962.9,1962.1,0.68422631]
[1771660171145,6.27071293,1962.8,1962.1,0.68422631]
[1771660171343,0.46782078,1962.7,1962.1,0.68422631]
[1771660171544,1.66197644,1962.9,1962.1,0.68422631]
[1771660171744,6.27016642,1962.8,1962.1,0.68422631]
[1771660171946,0.46778029,1962.7,1962.1,0.68422631]
[1771660172146,1.66197644,1962.9,1962.1,0.68422631]
[1771660172346,6.27016642,1962.8,1962.1,0.68422631]
[1771660172547,0.46778029,1962.7,1962.1,0.68422631]
[1771660172748,1.66197644,1962.9,1962.1,0.68422631]
[1771660173046,6.26978139,1962.8,1962.1,0.68422631]
[1771660173249,0.46775151,1962.7,1962.1,0.68422631]
[1771660173443,1.66197644,1962.9,1962.1,0.68422631]
[1771660173639,6.26948004,1962.8,1962.1,0.68422631]
[1771660173839,0.46772899,1962.7,1962.1,0.68422631]
[1771660174141,1.66197644,1962.9,1962.1,0.68422631]
[1771660174343,6.26948004,1962.8,1962.1,0.68422631]
[1771660174647,0.46772899,1962.7,1962.1,0.68422631]
[1771660174848,1.66197644,1962.9,1962.1,0.68422631]
[1771660175146,6.26924382,1962.8,1962.1,0.68422631]
[1771660175342,0.46771128,1962.7,1962.1,0.68422631]
[1771660175543,1.66197644,1962.9,1962.1,0.68422631]
[1771660175742,6.26906391,1962.8,1962.1,0.68422631]
[1771660175946,0.46769786,1962.7,1962.1,0.68422631]
[1771660176147,1.66197644,1962.9,1962.1,0.68422631]
[1771660176347,6.26906391,1962.8,1962.1,0.68422631]
[1771660176650,0.46769786,1962.7,1962.1,0.68422631]
[1771660176950,1.66197644,1962.9,1962.1,0.68422631]
[1771660177151,6.26893121,1962.8,1962.1,0.68422631]
[1771660177351,1.66197644,1962.9,1962.1,0.68422631]
[1771660177554,6.26876198,1962.8,1962.1,0.68422631]
[1771660177751,1.66197644,1962.9,1962.1,0.68422631]
[1771660177946,6.26876309,1962.8,1962.1,0.68422631]
[1771660178146,1.66197644,1962.9,1962.1,0.68422631]
[1771660178344,6.26876309,1962.8,1962.1,0.68422631]
[1771660178547,1.66197644,1962.9,1962.1,0.68422631]
[1771660178747,6.26862061,1962.8,1962.1,0.68422631]
[1771660178950,1.66197644,1962.9,1962.1,0.68422631]
[1771660179153,6.26862061,1962.8,1962.1,0.68422631]
[1771660179349,1.66197644,1962.9,1962.1,0.68422631]
[1771660179648,6.26851626,1962.8,1962.1,0.68422631]
[1771660179850,1.66197644,1962.9,1962.1,0.68422631]
[1771660180051,6.26851626,1962.8,1962.1,0.68422631]
[1771660180247,1.66197644,1962.9,1962.1,0.68422631]
[1771660180448,6.26843779,1962.8,1962.1,0.68422631]
[1771660180644,1.66197644,1962.9,1962.1,0.68422631]
[1771660180853,6.26843779,1962.8,1962.1,0.68422631]
[1771660181154,1.66197644,1962.9,1962.1,0.68422631]
[1771660181354,6.26843778,1962.8,1962.1,0.68422631]
[1771660181554,1.66197644,1962.9,1962.1,0.68422631]
[1771660181854,6.26838639,1962.8,1962.1,0.68422631]
[1771660182053,1.66197644,1962.9,1962.1,0.68422631]
[1771660182248,6.26839051,1962.8,1962.1,0.68422631]
[1771660182450,1.66197644,1962.9,1962.1,0.68422631]
[1771660182650,6.26835298,1962.8,1962.1,0.68422631]
[1771660182850,1.66197644,1962.9,1962.1,0.68422631]
[1771660183150,6.26835298,1962.8,1962.1,0.68422631]
[1771660183352,1.66197644,1962.9,1962.1,0.68422631]
[1771660183548,6.2683394,1962.8,1962.1,0.68422631]
[1771660183750,1.66197644,1962.9,1962.1,0.68422631]
[1771660183953,6.2683394,1962.8,1962.1,0.68422631]
[1771660184159,1.66197644,1962.9,1962.1,0.68422631]
[1771660184457,6.2683394,1962.8,1962.1,0.68422631]
[1771660184658,1.66197644,1962.9,1962.1,0.68422631]
[1771660184858,6.26835328,1962.8,1962.1,0.68422631]
[1771660185056,1.66197644,1962.9,1962.1,0.68422631]
[1771660185260,6.26835329,1962.8,1962.1,0.68422631]
[1771660185558,1.66197644,1962.9,1962.1,0.68422631]
[1771660185759,6.2683857,1962.8,1962.1,0.68422631]
[1771660186058,1.66197644,1962.9,1962.1,0.68422631]
[1771660186357,6.26838564,1962.8,1962.1,0.68422631]
[1771660186557,1.66197644,1962.9,1962.1,0.68422631]
[1771660186758,6.26844329,1962.8,1962.1,0.68422631]
[1771660186959,1.66197644,1962.9,1962.1,0.68422631]
[1771660187154,6.26844364,1962.8,1962.1,0.68422631]
[1771660187350,0.46765527,1962.7,1962.1,0.68422631]
[1771660187552,1.66197644,1962.9,1962.1,0.68422631]
[1771660187756,6.26852651,1962.8,1962.1,0.68422631]
[1771660187957,0.46765721,1962.7,1962.1,0.68422631]
[1771660188154,1.66197644,1962.9,1962.1,0.68422631]
[1771660188358,1.66197644,1962.7,1962.1,0.68422631]
[1771660188560,0.46766285,1962.6,1962.1,0.68422631]
[1771660190265,1.66197644,1962.7,1962.1,0.68422631]
[1771660191867,4.2787835,1962.9,1962.1,0.68422631]
[1771660192070,6.27016894,1962.8,1962.1,0.68422631]
[1771660192266,6.27016894,1962.7,1962.1,0.68422631]
[1771660192565,4.2787835,1962.9,1962.1,0.68422631]
[1771660192766,6.27006145,1962.8,1962.1,0.68422631]
[1771660192968,4.2787835,1962.9,1962.1,0.68422631]
[1771660192969,6.27006145,1962.7,1962.1,0.68422631]
[1771660193170,0.46760334,1962.6,1962.1,0.68422631]
[1771660193370,4.2787835,1962.9,1962.1,0.68422631]
[1771660193571,6.26978341,1962.8,1962.1,0.68422631]
[1771660193872,6.26978341,1962.7,1962.1,0.68422631]
[1771660194069,4.2787835,1962.9,1962.1,0.68422631]
[1771660194271,6.26977498,1962.8,1962.1,0.68422631]
[1771660194470,6.26977498,1962.7,1962.1,0.68422631]
[1771660194670,4.2787835,1962.9,1962.1,0.68422631]
[1771660194873,6.26983767,1962.8,1962.1,0.68422631]
[1771660195172,6.26983767,1962.7,1962.1,0.68422631]
[1771660195473,4.2787835,1962.9,1962.1,0.68422631]
[1771660195673,6.26997601,1962.8,1962.1,0.68422631]
[1771660195973,6.26997601,1962.7,1962.1,0.68422631]
[1771660196167,4.2787835,1962.9,1962.1,0.68422631]
[1771660196364,6.26999928,1962.8,1962.1,0.68422631]
[1771660196566,6.26999928,1962.7,1962.1,0.68422631]
[1771660196767,4.2787835,1962.9,1962.1,0.68422631]
[1771660196976,6.27019684,1962.8,1962.1,0.68422631]
[1771660197176,6.27019684,1962.7,1962.1,0.68422631]
[1771660197378,4.2787835,1962.9,1962.1,0.68422631]
[1771660197677,6.27050815,1962.8,1962.1,0.68422631]
[1771660197877,6.27050815,1962.7,1962.1,0.68422631]
[1771660198075,4.2787835,1962.9,1962.1,0.68422631]
[1771660198276,6.27050811,1962.8,1962.1,0.68422631]
[1771660198475,6.27050811,1962.7,1962.1,0.68422631]
[1771660198677,0.46763018,1962.6,1962.1,0.68422631]
[1771660198975,4.2787835,1962.9,1962.1,0.68422631]
[1771660199176,6.2709264,1962.8,1962.1,0.68422631]
[1771660199375,6.2709264,1962.7,1962.1,0.68422631]
[1771660199574,0.4676608,1962.6,1962.1,0.68422631]
[1771660199778,4.2787835,1962.9,1962.1,0.68422631]
[1771660199980,6.2708721,1962.8,1962.1,0.68422631]
[1771660200181,6.2708721,1962.7,1962.1,0.68422631]
[1771660200384,0.46765575,1962.6,1962.1,0.68422631]
[1771660200583,4.2787835,1962.9,1962.1,0.68422631]
[1771660200783,6.2708659,1962.8,1962.1,0.68422631]
[1771660200984,6.2708659,1962.7,1962.1,0.68422631]
[1771660201282,0.46765526,1962.6,1962.1,0.68422631]
[1771660201484,4.2787835,1962.9,1962.1,0.68422631]
[1771660201684,6.27081962,1962.8,1962.1,0.68422631]
[1771660201886,6.27081962,1962.7,1962.1,0.68422631]
[1771660202184,4.2787835,1963.0,1962.1,0.68422631]
[1771660202384,6.27085513,1962.9,1962.1,0.68422631]
[1771660202585,4.2787835,1963.0,1962.1,0.68422631]
[1771660202586,6.27085513,1962.8,1962.1,0.68422631]
[1771660202786,6.27085513,1962.7,1962.1,0.68422631]
[1771660202983,4.2787835,1963.0,1962.1,0.68422631]
[1771660203183,6.2708406,1962.9,1962.1,0.68422631]
[1771660203478,6.2708406,1962.8,1962.1,0.68422631]
[1771660203681,6.2708406,1962.7,1962.1,0.68422631]
[1771660203880,4.2787835,1963.0,1962.1,0.68422631]
[1771660204081,6.27092947,1962.9,1962.1,0.68422631]
[1771660204285,6.27092947,1962.8,1962.1,0.68422631]
[1771660204487,6.27092947,1962.7,1962.1,0.68422631]
[1771660204689,4.2787835,1963.0,1962.1,0.68422631]
[1771660204892,6.27103062,1962.9,1962.1,0.68422631]
[1771660205093,6.27103062,1962.8,1962.1,0.68422631]
[1771660205292,6.27103062,1962.7,1962.1,0.68422631]
[1771660205493,4.2787835,1963.0,1962.1,0.68422631]
[1771660205692,6.27114513,1962.9,1962.1,0.68422631]
[1771660205893,6.27114513,1962.8,1962.1,0.68422631]
[1771660206095,6.27114513,1962.7,1962.1,0.68422631]
[1771660206295,4.2787835,1963.0,1962.1,0.68422631]
[1771660206594,6.27125219,1962.9,1962.1,0.68422631]
[1771660206892,6.27125219,1962.8,1962.1,0.68422631]
[1771660207093,4.2787835,1963.0,1962.1,0.68422631]
[1771660207094,6.27125219,1962.7,1962.1,0.68422631]
[1771660207294,4.2787835,1963.0,1962.1,0.68422631]
[1771660207594,6.27138271,1962.9,1962.1,0.68422631]
[1771660207794,6.27138271,1962.8,1962.1,0.68422631]
[1771660208094,6.27138271,1962.7,1962.1,0.68422631]
[1771660208293,4.2787835,1963.0,1962.1,0.68422631]
[1771660208493,6.2715217,1962.9,1962.1,0.68422631]
[1771660208791,6.2715217,1962.8,1962.1,0.68422631]
[1771660209091,6.2715217,1962.7,1962.1,0.68422631]
[1771660209293,4.2787835,1963.0,1962.1,0.68422631]
[1771660209493,6.27167167,1962.9,1962.1,0.68422631]
[1771660209693,6.27167167,1962.8,1962.1,0.68422631]
[1771660209893,6.27167167,1962.7,1962.1,0.68422631]
[1771660210096,4.28268708,1963.1,1962.1,0.68422631]
[1771660210394,6.2709134,1963.0,1962.3,0.68250062]
[1771660210592,0.00390358,1963.1,1962.3,0.68250062]
[1771660210793,0.46760776,1963.0,1962.3,0.68250062]
[1771660210994,0.00390358,1963.1,1962.3,0.68250062]
[1771660233215,0.46704875,1963.0,1962.3,0.68250062]
[1771660233515,0.00390358,1963.1,1962.3,0.68250062]
[1771660233813,0.46704875,1963.0,1962.3,0.68250062]
[1771660234013,0.00390358,1963.1,1962.3,0.68250062]
[1771660234209,0.46704875,1963.0,1962.3,0.68250062]
[1771660234405,0.00390358,1963.1,1962.3,0.68250062]
[1771660234605,0.4671115,1963.0,1962.3,0.68250062]
[1771660234805,0.00390358,1963.1,1962.3,0.68250062]
[1771660235005,0.46711154,1963.0,1962.3,0.68250062]
[1771660235213,0.00390358,1963.1,1962.3,0.68250062]
[1771660235415,6.26070213,1963.0,1962.3,0.68250062]
[1771660235613,0.00390358,1963.1,1962.3,0.68250062]
[1771660235815,6.26070229,1963.0,1962.3,0.68250062]
[1771660236115,0.00390358,1963.1,1962.3,0.68250062]
[1771660236313,6.26166491,1963.0,1962.3,0.68250062]
[1771660236515,0.00390358,1963.1,1962.3,0.68250062]
[1771660236715,6.26174443,1963.0,1962.3,0.68250062]
[1771660236916,0.00390358,1963.1,1962.3,0.68250062]
[1771660237118,6.26174379,1963.0,1962.3,0.68250062]
[1771660237312,0.00390358,1963.1,1962.3,0.68250062]
[1771660237514,6.26299407,1963.0,1962.3,0.68250062]
[1771660237718,0.00390358,1963.1,1962.3,0.68250062]
[1771660237919,6.26299407,1963.0,1962.3,0.68250062]
[1771660238117,0.00390358,1963.1,1962.3,0.68250062]
[1771660238317,6.26445142,1963.0,1962.3,0.68250062]
[1771660238518,0.00390358,1963.1,1962.3,0.68250062]
[1771660238722,6.26457222,1963.0,1962.3,0.68250062]
[1771660238918,0.00390358,1963.1,1962.3,0.68250062]
[1771660239119,6.26458639,1963.0,1962.3,0.68250062]
[1771660239322,0.46765044,1962.9,1962.3,0.68250062]
[1771660239619,0.00390358,1963.1,1962.3,0.68250062]
[1771660239820,6.26677834,1963.0,1962.3,0.68250062]
[1771660240116,0.00390358,1963.1,1962.3,0.68250062]
[1771660240316,6.26785824,1963.0,1962.3,0.68250062]
[1771660240512,0.46765059,1962.9,1962.3,0.68250062]
[1771660240814,0.00390358,1963.1,1962.3,0.68250062]
[1771660241016,6.26792442,1963.0,1962.3,0.68250062]
[1771660241213,0.46771677,1962.9,1962.3,0.68250062]
[1771660241418,0.00390358,1963.1,1962.3,0.68250062]
[1771660241613,6.26784025,1963.0,1962.3,0.68250062]
[1771660241818,0.46771051,1962.9,1962.3,0.68250062]
[1771660242020,0.00390358,1963.1,1962.3,0.68250062]
[1771660242222,6.26784059,1963.0,1962.3,0.68250062]
[1771660242423,0.46771053,1962.9,1962.3,0.68250062]
[1771660242625,0.00390358,1963.1,1962.3,0.68250062]
[1771660242822,6.26785648,1963.0,1962.3,0.68250062]
[1771660243022,0.46771175,1962.9,1962.3,0.68250062]
[1771660243221,0.00390358,1963.1,1962.3,0.68250062]
[1771660243421,6.26789697,1963.0,1962.3,0.68250062]
[1771660243623,0.4677148,1962.9,1962.3,0.68250062]
[1771660243820,0.00390358,1963.1,1962.3,0.68250062]
[1771660244022,6.26791286,1963.0,1962.3,0.68250062]
[1771660244222,0.00390358,1963.1,1962.3,0.68250062]
[1771660244223,0.46771604,1962.9,1962.3,0.68250062]
[1771660244424,0.00390358,1963.1,1962.3,0.68250062]
[1771660244627,6.26792873,1963.0,1962.3,0.68250062]
[1771660244826,0.46771727,1962.9,1962.3,0.68250062]
[1771660245129,0.00390358,1963.1,1962.3,0.68250062]
[1771660245430,6.2679724,1963.0,1962.3,0.68250062]
[1771660245631,0.46771726,1962.9,1962.3,0.68250062]
[1771660245925,0.00390358,1963.1,1962.3,0.68250062]
[1771660246127,6.26797116,1963.0,1962.3,0.68250062]
[1771660246327,0.46772046,1962.9,1962.3,0.68250062]
[1771660246627,0.00390358,1963.1,1962.3,0.68250062]
[1771660246828,6.26806337,1963.0,1962.3,0.68250062]
[1771660247027,0.46772722,1962.9,1962.3,0.68250062]
[1771660247327,0.00390358,1963.1,1962.3,0.68250062]
[1771660247528,6.2681906,1963.0,1962.3,0.68250062]
[1771660247730,0.46773676,1962.9,1962.3,0.68250062]
[1771660247930,0.00390358,1963.1,1962.3,0.68250062]
[1771660248124,6.26819169,1963.0,1962.3,0.68250062]
[1771660248325,0.46773684,1962.9,1962.3,0.68250062]